bitfinex-derivatives/quotes_BTCF0:USTF0_20250811
["timestamp","ask_amount","ask_price","bid_price","bid_amount"]
[1754909866653,0.93797183,121100.0,121090.0,0.93348072]
[1754909866854,0.93167183,121100.0,121090.0,1.22841942]
[1754909867055,0.93467183,121100.0,121090.0,1.22841942]
[1754909867355,0.93667183,121100.0,121090.0,0.93348072]
[1754909869355,2.35408653,121100.0,121090.0,0.93348072]
[1754909869849,2.43667183,121100.0,121090.0,0.93348072]
[1754909870245,0.02714653,121100.0,121090.0,1.22841942]
[1754909870457,0.82418653,121100.0,121090.0,1.22841942]
[1754909871156,0.05785653,121100.0,121090.0,1.22841942]
[1754909871356,0.85473653,121100.0,121090.0,1.22841942]
[1754909871557,0.85173653,121100.0,121090.0,1.22841942]
[1754909871754,0.82302653,121100.0,121090.0,1.22841942]
[1754909871959,0.80098327,121100.0,121090.0,1.22841942]
[1754909872553,0.88356867,121100.0,121090.0,1.22841942]
[1754909873657,0.8824254,121100.0,121090.0,1.22841942]
[1754909873848,0.8324254,121100.0,121090.0,1.22841942]
[1754909874047,0.0365854,121100.0,121090.0,1.22841942]
[1754909874256,0.8383754,121100.0,121090.0,1.22841942]
[1754909874554,0.8399038,121100.0,121090.0,1.22841942]
[1754909874857,5.84e-05,121100.0,121090.0,1.22841942]
[1754909875052,0.7951384,121100.0,121090.0,1.39357942]
[1754909875357,2.46024,121110.0,121100.0,0.0825854]
[1754909875551,1.5825799,121110.0,121100.0,0.9448141]
[1754909875757,2.3776185,121110.0,121100.0,1.15962655]
[1754909875962,2.31662122,121110.0,121100.0,1.3899312]
[1754909876156,0.31669363,121110.0,121100.0,1.3899312]
[1754909876364,0.39927213,121110.0,121100.0,1.3899312]
[1754909876558,0.89903213,121110.0,121100.0,1.3899312]
[1754909876861,0.92974213,121110.0,121100.0,1.3899312]
[1754909877161,0.93074213,121110.0,121100.0,1.3899312]
[1754909877564,0.02165363,121110.0,121100.0,1.24619952]
[1754909877758,0.81617363,121110.0,121100.0,1.24619952]
[1754909877966,0.11046233,121110.0,121100.0,1.24619952]
[1754909878260,0.92938233,121110.0,121100.0,1.24819952]
[1754909878965,0.93566233,121110.0,121100.0,0.95326082]
[1754909879267,0.93566233,121110.0,121100.0,1.1009927]
[1754909880063,0.92898233,121110.0,121100.0,1.24819972]
[1754909880657,0.13494233,121110.0,121100.0,1.24619972]
[1754909880863,0.92834233,121110.0,121100.0,1.24619972]
[1754909881259,0.92834233,121110.0,121100.0,1.24519972]
[1754909882255,0.9066887,121110.0,121100.0,1.24519972]
[1754909882464,0.70537344,121110.0,121100.0,1.24519972]
[1754909882665,0.78795214,121110.0,121100.0,1.24519972]
[1754909883368,0.78802914,121110.0,121100.0,1.24519972]
[1754909884367,0.81015137,121110.0,121100.0,1.24519972]
[1754909885566,0.76015137,121110.0,121100.0,1.24519972]
[1754909887170,0.73802914,121110.0,121100.0,1.24519972]
[1754909888466,0.73802914,121110.0,121100.0,0.95026102]
[1754909888663,0.73802914,121110.0,121100.0,1.24519972]
[1754909889367,0.73802914,121110.0,121100.0,1.21724972]
[1754909890070,0.51505964,121110.0,121100.0,1.21724972]
[1754909890465,0.53404017,121110.0,121100.0,1.21724972]
[1754909892769,0.53404017,121110.0,121100.0,1.17415972]
[1754909894667,0.89131623,121110.0,121100.0,1.17415972]
[1754909895367,0.89131623,121110.0,121100.0,1.41038825]
[1754909896069,0.89075623,121110.0,121100.0,1.11544955]
[1754909896270,0.89075623,121110.0,121100.0,1.41038825]
[1754909897071,0.81060753,121110.0,121100.0,1.41038825]
[1754909897271,1.19517493,121110.0,121100.0,0.43583542]
[1754909897770,1.19561493,121110.0,121100.0,0.43583542]
[1754909897969,0.90067623,121110.0,121100.0,0.51842072]
[1754909898171,0.90067623,121110.0,121100.0,0.43583542]
[1754909898770,0.90067623,121110.0,121100.0,0.51842072]
[1754909899166,0.90067623,121110.0,121100.0,0.43583542]
[1754909900575,0.90067623,121110.0,121100.0,0.51842072]
[1754909901576,0.90067623,121110.0,121100.0,0.43583542]
[1754909902274,0.90067623,121110.0,121100.0,0.51842072]
[1754909902576,0.89362623,121110.0,121100.0,0.46455072]
[1754909902777,0.89362623,121110.0,121100.0,0.38196542]
[1754909903274,1.18840493,121110.0,121100.0,0.38196542]
[1754909903971,0.89103623,121110.0,121100.0,0.30048542]
[1754909904368,0.01905753,121110.0,121100.0,1.03880942]
[1754909904573,0.526494,121130.0,121120.0,0.0825717]
[1754909904766,0.955694,121130.0,121120.0,0.3776104]
[1754909904971,0.955694,121130.0,121120.0,0.59362414]
[1754909905172,0.955694,121130.0,121120.0,0.67619711]
[1754909905577,0.95578462,121130.0,121120.0,0.67619711]
[1754909905772,0.95578462,121130.0,121120.0,0.59362541]
[1754909905979,1.26908375,121130.0,121120.0,0.29868671]
[1754909906179,1.62988375,121130.0,121120.0,0.20683051]
[1754909906372,0.84028375,121130.0,121120.0,0.20683051]
[1754909906575,1.62984375,121130.0,121120.0,0.20683051]
[1754909906870,0.84128375,121130.0,121120.0,0.20683051]
[1754909907266,1.63060375,121130.0,121120.0,0.20683051]
[1754909907771,1.63160375,121130.0,121120.0,0.20683051]
[1754909908165,0.84228375,121130.0,121120.0,0.20683051]
[1754909908370,1.63116375,121130.0,121120.0,0.20683051]
[1754909908974,0.84228375,121130.0,121120.0,0.20683051]
[1754909909179,1.63080375,121130.0,121120.0,0.20683051]
[1754909909880,0.84228375,121130.0,121120.0,0.20683051]
[1754909910379,1.63048375,121130.0,121120.0,0.20683051]
[1754909910574,0.84228375,121130.0,121120.0,0.20683051]
[1754909910769,1.63048375,121130.0,121120.0,0.20683051]
[1754909911573,1.63048375,121130.0,121120.0,0.44438356]
[1754909912581,1.62972375,121130.0,121120.0,0.44438356]
[1754909912977,0.84228375,121130.0,121120.0,0.44438356]
[1754909913182,1.62948375,121130.0,121120.0,0.44438356]
[1754909913473,1.33446505,121130.0,121120.0,0.44438356]
[1754909913674,1.62940375,121130.0,121120.0,0.44438356]
[1754909914276,0.84228375,121130.0,121120.0,0.44438356]
[1754909914490,0.54734505,121130.0,121120.0,0.73932226]
[1754909914679,1.33402505,121130.0,121120.0,0.73932226]
[1754909914984,2.83402505,121130.0,121120.0,0.44438356]
[1754909915175,2.47222505,121130.0,121120.0,0.44438356]
[1754909915488,2.76813947,121130.0,121120.0,0.20683051]
[1754909916386,2.76713947,121130.0,121120.0,0.20683051]
[1754909917385,3.12781947,121130.0,121120.0,0.20683051]
[1754909917584,2.76701947,121130.0,121120.0,0.20683051]
[1754909918985,2.47208077,121130.0,121120.0,0.20683051]
[1754909919180,2.47144077,121130.0,121120.0,0.20683051]
[1754909919379,0.48061947,121130.0,121120.0,0.20683051]
[1754909919779,2.76565947,121130.0,121120.0,0.20683051]
[1754909919980,2.77006947,121130.0,121120.0,0.25211051]
[1754909920578,2.76966947,121130.0,121120.0,0.25211051]
[1754909921290,1.98502947,121130.0,121120.0,0.25211051]
[1754909921476,2.76978947,121130.0,121120.0,0.25211051]
[1754909922680,1.52054677,121130.0,121120.0,0.98231961]
[1754909922880,0.00243,121130.0,121120.0,1.58376932]
[1754909923084,0.74384,121130.0,121120.0,1.58376932]
[1754909923684,0.00322104,121140.0,121130.0,0.0825649]
[1754909923889,0.78418366,121140.0,121130.0,0.8803136]
[1754909924087,0.06718599,121140.0,121130.0,1.09741684]
[1754909924287,2.35130599,121140.0,121130.0,1.17997617]
[1754909924585,2.43386409,121140.0,121130.0,1.17997617]
[1754909924884,0.06718599,121140.0,121130.0,1.17997617]
[1754909925083,0.1650974,121160.0,121140.0,0.2476571]
[1754909925084,0.0825523,121150.0,121140.0,0.2476571]
[1754909925277,0.8664723,121150.0,121140.0,0.9612558]
[1754909925583,2.3664323,121150.0,121140.0,1.17179029]
[1754909925881,2.3664323,121150.0,121140.0,1.33849281]
[1754909926084,0.0001038,121150.0,121140.0,1.33849281]
[1754909926287,0.2476029,121180.0,121170.0,0.0825377]
[1754909926486,0.1650662,121180.0,121170.0,0.5194864]
[1754909926784,0.9485062,121180.0,121170.0,0.73508462]
[1754909926988,1.01616768,121180.0,121170.0,0.81760989]
[1754909927178,0.23282761,121180.0,121170.0,0.52274574]
[1754909927378,1.01642761,121180.0,121170.0,0.52274574]
[1754909927781,1.01842761,121180.0,121170.0,0.52274574]
[1754909928681,1.02042761,121180.0,121170.0,0.52274574]
[1754909929082,1.02156286,121180.0,121170.0,0.52274574]
[1754909929383,0.07289666,121180.0,121170.0,1.05427326]
[1754909929585,0.02289666,121180.0,121170.0,1.41507326]
[1754909929782,0.8662045,121190.0,121170.0,1.41507326]
[1754909929983,0.88542642,121190.0,121180.0,0.8234794]
[1754909930285,0.88542642,121190.0,121180.0,0.5842407]
[1754909930487,0.80290192,121190.0,121180.0,0.80239136]
[1754909930788,0.80290192,121190.0,121180.0,0.88491663]
[1754909930982,0.80296835,121190.0,121180.0,0.88491663]
[1754909931188,0.86892758,121190.0,121180.0,1.17985533]
[1754909931388,0.86892758,121190.0,121180.0,0.88491663]
[1754909931590,0.08824758,121190.0,121180.0,1.17985533]
[1754909931790,0.87132758,121190.0,121180.0,1.17985533]
[1754909932484,0.87232758,121190.0,121180.0,1.17985533]
[1754909932690,0.17177168,121190.0,121180.0,1.17985533]
[1754909932999,0.95473168,121190.0,121180.0,1.17985533]
[1754909933192,0.95373168,121190.0,121180.0,1.17985533]
[1754909933583,0.95373168,121190.0,121180.0,0.88491663]
[1754909933792,0.90253168,121190.0,121180.0,0.88491663]
[1754909933983,0.90353168,121190.0,121180.0,0.88491663]
[1754909934293,0.87313961,121190.0,121180.0,0.88491663]
[1754909934985,0.87320062,121190.0,121180.0,0.88491663]
[1754909935186,0.87300062,121190.0,121180.0,0.88491663]
[1754909935486,2.37300062,121190.0,121180.0,0.88491663]
[1754909935893,2.30606419,121190.0,121180.0,0.88491663]
[1754909936094,2.37146231,121190.0,121180.0,0.88491663]
[1754909936393,2.45398621,121190.0,121180.0,1.17985533]
[1754909936784,2.43447828,121190.0,121180.0,1.17985533]
[1754909937181,0.93447828,121190.0,121180.0,1.17985533]
[1754909938292,0.85123438,121190.0,121180.0,1.17985533]
[1754909938490,0.06959438,121190.0,121180.0,1.17985533]
[1754909938692,0.01959438,121190.0,121180.0,1.96101533]
[1754909938889,1.5,121200.0,121180.0,1.34491233]
[1754909939087,2.28108,121200.0,121190.0,1.0150503]
[1754909939389,1.5,121200.0,121190.0,1.0151503]
[1754909939591,6.87e-05,121200.0,121190.0,1.62828663]
[1754909939791,6.87e-05,121200.0,121190.0,1.71080509]
[1754909940193,6.87e-05,121200.0,121190.0,2.49160509]
[1754909940384,6.87e-05,121200.0,121190.0,2.34427196]
[1754909940695,0.0010687,121200.0,121190.0,2.34427196]
[1754909941390,0.06668586,121200.0,121190.0,2.34427196]
[1754909941594,0.2475011,121230.0,121220.0,0.0825036]
[1754909941803,0.99502435,121230.0,121220.0,0.5183523]
[1754909941986,2.5587072,121230.0,121220.0,0.4340995]
[1754909942184,2.3067072,121230.0,121220.0,0.51659073]
[1754909942390,2.3892106,121230.0,121220.0,0.51659073]
[1754909942589,2.40807345,121230.0,121220.0,0.51659073]
[1754909943000,2.29882285,121230.0,121220.0,0.66380087]
[1754909943302,2.29882285,121230.0,121220.0,0.66480087]
[1754909943601,2.27994703,121230.0,121220.0,1.32053957]
[1754909943897,2.28208181,121230.0,121220.0,1.32053957]
[1754909944500,2.34823044,121230.0,121220.0,1.32053957]
[1754909944698,2.34811044,121230.0,121220.0,1.32053957]
[1754909944899,1.56839044,121230.0,121220.0,1.32053957]
[1754909945096,2.34803044,121230.0,121220.0,1.32053957]
[1754909945302,2.34803044,121230.0,121220.0,1.17232943]
[1754909945496,2.34803044,121230.0,121220.0,1.22222943]
[1754909945902,2.43052714,121230.0,121220.0,1.22222943]
[1754909946100,2.42952714,121230.0,121220.0,0.92829073]
[1754909946404,2.42952714,121230.0,121220.0,1.22322943]
[1754909946596,2.37952714,121230.0,121220.0,1.22322943]
[1754909947002,2.32952714,121230.0,121220.0,0.87839073]
[1754909947302,2.24703044,121230.0,121220.0,1.17332943]
[1754909947903,2.24703044,121230.0,121220.0,1.32053957]
[1754909948104,1.46739044,121230.0,121220.0,1.32053957]
[1754909948502,1.46950044,121230.0,121220.0,1.32053957]
[1754909948702,0.06950044,121230.0,121220.0,1.32053957]
[1754909949005,0.08800044,121230.0,121220.0,1.32053957]
[1754909949305,0.55025,121230.0,121220.0,1.32053957]
[1754909949505,0.55025,121230.0,121220.0,1.17332943]
[1754909950104,8.869e-05,121230.0,121220.0,0.51759073]
[1754909950400,0.37752429,121230.0,121220.0,0.42229073]
[1754909950605,0.37752429,121230.0,121220.0,0.52395254]
[1754909950800,1.15592429,121230.0,121220.0,0.56946254]
[1754909951007,0.86212037,121230.0,121220.0,0.66476254]
[1754909951402,0.86212037,121230.0,121220.0,0.51759083]
[1754909951608,0.86212037,121230.0,121220.0,0.66483919]
[1754909951801,0.86192037,121230.0,121220.0,0.66483919]
[1754909952803,0.86873037,121230.0,121220.0,0.70957919]
[1754909953104,0.09053037,121230.0,121220.0,0.73902919]
[1754909953308,0.85102484,121230.0,121220.0,0.73902919]
[1754909953508,0.93352174,121230.0,121220.0,0.73902919]
[1754909954004,0.85102484,121230.0,121220.0,0.59178083]
[1754909954204,0.93352174,121230.0,121220.0,0.59178083]
[1754909955407,0.85102484,121230.0,121220.0,0.59178083]
[1754909955611,0.93352184,121230.0,121220.0,0.59178083]
[1754909956108,0.85102484,121230.0,121220.0,0.59178083]
[1754909956505,0.93352174,121230.0,121220.0,0.73902919]
[1754909956705,0.85102484,121230.0,121220.0,0.73902919]
[1754909956906,0.93352174,121230.0,121220.0,0.73902919]
[1754909957410,0.15576174,121230.0,121220.0,0.56953919]
[1754909957609,1.22730044,121230.0,121220.0,0.56953919]
[1754909958207,1.22730044,121230.0,121220.0,0.61618919]
[1754909958412,0.15576174,121230.0,121220.0,0.74695919]
[1754909958711,0.93248174,121230.0,121220.0,0.74695919]
[1754909961230,0.93248174,121230.0,121220.0,0.59971083]
[1754909961803,0.93361652,121230.0,121220.0,0.59971083]
[1754909962003,0.92680652,121230.0,121220.0,0.52209083]
[1754909962216,0.94011652,121230.0,121220.0,0.59971083]
[1754909964415,0.94011652,121230.0,121220.0,0.51720713]
[1754909964416,0.16339652,121230.0,121220.0,0.51720713]
[1754909964614,1.59449522,121230.0,121220.0,0.51720713]
[1754909964813,1.58118522,121230.0,121220.0,0.29427713]
[1754909965017,0.80582522,121230.0,121220.0,0.3550645]
[1754909965208,2.16112922,121230.0,121220.0,0.09937597]
[1754909965408,0.0825038,121220.0,121210.0,0.04543972]
[1754909965608,0.0825106,121210.0,121200.0,0.0499]
[1754909965808,1.51683886,121210.0,121200.0,0.0499]
[1754909966014,1.51683886,121210.0,121200.0,0.25575795]
[1754909966212,1.81177756,121210.0,121200.0,0.17326672]
[1754909966410,0.082531,121180.0,121170.0,0.04578455]
[1754909966918,1.15593926,121180.0,121170.0,0.35145611]
[1754909967418,1.15597926,121180.0,121170.0,0.35145611]
[1754909967817,0.00226956,121180.0,121170.0,1.17912409]
[1754909968015,0.0825241,121190.0,121180.0,0.2475805]
[1754909968213,0.0825241,121190.0,121180.0,0.3930905]
[1754909968214,0.8588441,121190.0,121180.0,0.3930905]
[1754909968413,0.77632,121190.0,121180.0,0.96524575]
[1754909968621,0.2476621,121200.0,121190.0,0.0825241]
[1754909968811,0.9416992,121200.0,121190.0,0.1399241]
[1754909969115,0.77666,121200.0,121190.0,0.35112509]
[1754909969421,0.77666,121200.0,121190.0,0.43363674]
[1754909970510,0.8591771,121200.0,121190.0,0.43363674]
[1754909970820,0.77666,121200.0,121190.0,0.43363674]
[1754909971015,0.77666,121200.0,121190.0,0.43663674]
[1754909971418,0.0001,121200.0,121190.0,0.89053433]
[1754909971619,0.37939798,121220.0,121210.0,0.0825103]
[1754909971813,0.38113798,121220.0,121210.0,0.0825103]
[1754909972117,0.00174,121220.0,121210.0,0.29945289]
[1754909972319,0.00283,121220.0,121210.0,0.38195093]
[1754909972820,0.77903,121220.0,121210.0,0.38195093]
[1754909973020,0.77913,121220.0,121210.0,0.78856093]
[1754909973516,0.00293,121220.0,121210.0,0.78856093]
[1754909973709,0.75931,121220.0,121210.0,0.93624886]
[1754909974319,0.75931,121220.0,121210.0,0.78846093]
[1754909974714,0.78803106,121220.0,121210.0,0.25205304]
[1754909974914,0.78813106,121220.0,121210.0,0.25215304]
[1754909975222,1.56393106,121220.0,121210.0,0.25215304]
[1754909975715,1.56369106,121220.0,121210.0,0.25215304]
[1754909976817,0.78813106,121220.0,121210.0,0.25215304]
[1754909977118,1.56361106,121220.0,121210.0,0.25215304]
[1754909981628,1.56361106,121220.0,121210.0,0.28225304]
[1754909981830,0.78813106,121220.0,121210.0,0.28225304]
[1754909982022,1.56225106,121220.0,121210.0,0.25215304]
[1754909982818,1.56225106,121220.0,121210.0,0.28225304]
[1754909983026,1.56225106,121220.0,121210.0,0.35195304]
[1754909983621,1.56225106,121220.0,121210.0,0.54413953]
[1754909984133,0.78813106,121220.0,121210.0,0.54413953]
[1754909984326,1.56197106,121220.0,121210.0,0.54413953]
[1754909985230,1.56269106,121220.0,121210.0,0.54413953]
[1754909985932,1.56269106,121220.0,121210.0,0.35195304]
[1754909987728,0.78813106,121220.0,121210.0,0.35195304]
[1754909988028,1.56189106,121220.0,121210.0,0.58854186]
[1754909988439,0.78813106,121220.0,121210.0,0.58854186]
[1754909988628,0.78813106,121220.0,121210.0,0.54614186]
[1754909989032,1.56145106,121220.0,121210.0,0.54614186]
[1754909989241,1.56145106,121220.0,121210.0,0.48874186]
[1754909989432,0.78813106,121220.0,121210.0,0.552915]
[1754909989935,1.56165106,121220.0,121210.0,0.36410618]
[1754909990725,1.56265106,121220.0,121210.0,0.36410618]
[1754909990931,0.79013106,121220.0,121210.0,0.36410618]
[1754909991132,1.56333106,121220.0,121210.0,0.31632618]
[1754909991326,0.95513106,121220.0,121210.0,0.31632618]
[1754909991638,1.72825106,121220.0,121210.0,0.36410618]
[1754909991840,1.72817106,121220.0,121210.0,0.36410618]
[1754909992024,1.72817106,121220.0,121210.0,0.31632618]
[1754909992230,0.90462069,121220.0,121210.0,0.31632618]
[1754909992437,1.67766069,121220.0,121210.0,0.31632618]
[1754909992730,0.90462069,121220.0,121210.0,0.31632618]
[1754909992936,1.67754069,121220.0,121210.0,0.31632618]
[1754909993826,1.67754069,121220.0,121210.0,0.36410618]
[1754909994031,1.81444069,121220.0,121210.0,0.36410618]
[1754909994238,1.81444069,121220.0,121210.0,0.171725]
[1754909994637,1.81444069,121220.0,121210.0,0.36431783]
[1754909995135,2.10865758,121220.0,121210.0,0.19844503]
[1754909995327,1.81372069,121220.0,121210.0,0.19844503]
[1754909995839,1.81372069,121220.0,121210.0,0.0058522]
[1754909996439,1.84782069,121220.0,121210.0,0.0058522]
[1754909998441,1.07562069,121220.0,121210.0,0.0058522]
[1754909998739,1.84782069,121220.0,121210.0,0.0058522]
[1754910000340,0.0825204,121200.0,121190.0,0.12056205]
[1754910000544,0.082534,121180.0,121170.0,0.04298455]
[1754910000744,0.0825476,121160.0,121150.0,0.19268101]
[1754910000946,0.0825544,121150.0,121140.0,0.40651359]
[1754910001146,0.90601056,121150.0,121140.0,0.46576359]
[1754910001337,1.67805056,121150.0,121140.0,0.67183665]
[1754910001539,1.67815056,121150.0,121140.0,0.67193665]
[1754910001748,0.47798529,121150.0,121140.0,0.67193665]
[1754910001944,0.54362288,121150.0,121140.0,1.05642689]
[1754910002139,0.54362288,121150.0,121140.0,0.76221]
[1754910002337,1.31550288,121150.0,121140.0,0.80999]
[1754910002749,1.31550288,121150.0,121140.0,0.8529]
[1754910002946,1.31550288,121150.0,121140.0,0.49628641]
[1754910003147,0.10026848,121150.0,121140.0,0.87392365]
[1754910003342,0.95486278,121150.0,121140.0,0.52894751]
[1754910003547,0.95486278,121150.0,121140.0,0.53194751]
[1754910004051,0.95486278,121150.0,121140.0,0.77481599]
[1754910004250,0.87230848,121150.0,121140.0,0.77481599]
[1754910004640,0.10026848,121150.0,121140.0,0.77481599]
[1754910004840,0.83739921,121150.0,121140.0,1.53059213]
[1754910005152,0.03486149,121170.0,121160.0,0.0825475]
[1754910005451,1.3882139,121180.0,121170.0,0.0825407]
[1754910005653,2.19331821,121180.0,121170.0,0.2324807]
[1754910005952,2.26081774,121180.0,121170.0,0.76945222]
[1754910006154,2.26091774,121180.0,121170.0,0.76955222]
[1754910006551,1.24178384,121180.0,121170.0,0.76955222]
[1754910006741,0.06759953,121180.0,121170.0,1.64037636]
[1754910007047,0.2475745,121200.0,121170.0,1.69027636]
[1754910007245,0.6567929,121210.0,121190.0,0.2475759]
[1754910007443,0.6567929,121210.0,121200.0,0.2324597]
[1754910007644,1.4286729,121210.0,121200.0,0.2324597]
[1754910007846,1.4286729,121210.0,121200.0,0.52904101]
[1754910008042,1.38033135,121210.0,121200.0,0.52904101]
[1754910008249,1.41408776,121210.0,121200.0,0.52914101]
[1754910008446,1.41400776,121210.0,121200.0,0.52914101]
[1754910008644,1.46244776,121210.0,121200.0,0.72122203]
[1754910009351,1.52749839,121210.0,121200.0,0.72122203]
[1754910009547,1.56934839,121210.0,121200.0,0.63870233]
[1754910009743,1.56934839,121210.0,121200.0,0.72122173]
[1754910010050,1.56934839,121210.0,121200.0,0.72322173]
[1754910010354,1.56934839,121210.0,121200.0,0.72422173]
[1754910010754,1.56934839,121210.0,121200.0,0.64170233]
[1754910010755,0.79754839,121210.0,121200.0,0.64170233]
[1754910010961,1.63086839,121210.0,121200.0,0.64170233]
[1754910011454,1.63086839,121210.0,121200.0,0.72422163]
[1754910011651,1.63086839,121210.0,121200.0,0.64170233]
[1754910012556,1.63086839,121210.0,121200.0,0.72422163]
[1754910012858,1.63086839,121210.0,121200.0,0.64170233]
[1754910013048,0.49862839,121210.0,121200.0,0.72422163]
[1754910013242,1.26978839,121210.0,121200.0,0.72422163]
[1754910014353,0.95257919,121210.0,121200.0,0.72422163]
[1754910014748,0.87006549,121210.0,121200.0,0.72422163]
[1754910015055,0.06524908,121210.0,121200.0,0.72422163]
[1754910015250,0.83636908,121210.0,121200.0,1.06919777]
[1754910015850,0.91888168,121210.0,121200.0,0.53214061]
[1754910016051,0.91888168,121210.0,121200.0,0.76853835]
[1754910018062,0.91888168,121210.0,121200.0,0.53214061]
[1754910018559,0.91888168,121210.0,121200.0,0.87711675]
[1754910018759,0.91888168,121210.0,121200.0,0.89294061]
[1754910019161,0.14776168,121210.0,121200.0,0.89294061]
[1754910019358,0.91880168,121210.0,121200.0,0.89294061]
[1754910019760,0.14776168,121210.0,121200.0,0.89294061]
[1754910020052,0.91880168,121210.0,121200.0,0.89294061]
[1754910020258,0.91880168,121210.0,121200.0,1.12933835]
[1754910020458,0.06524908,121210.0,121200.0,1.68932249]
[1754910020660,0.06524908,121210.0,121200.0,1.52437272]
[1754910020852,0.06524908,121210.0,121200.0,1.68938072]
[1754910021054,0.06524908,121210.0,121200.0,1.8313155]
[1754910021756,0.06524908,121210.0,121200.0,1.48633936]
[1754910021956,0.99771158,121210.0,121200.0,1.8313155]
[1754910022162,0.99771158,121210.0,121200.0,1.40298298]
[1754910022353,1.07325158,121210.0,121200.0,0.89299884]
[1754910022553,1.07325158,121210.0,121200.0,1.23797498]
[1754910022755,1.02798158,121210.0,121200.0,1.23797498]
[1754910023060,1.02798158,121210.0,121200.0,1.28787498]
[1754910023461,0.94546908,121210.0,121200.0,1.28787498]
[1754910023658,0.94542908,121210.0,121200.0,1.28787498]
[1754910023859,0.94542908,121210.0,121200.0,0.94289884]
[1754910024060,0.17446908,121210.0,121200.0,1.28787498]
[1754910024259,0.94586908,121210.0,121200.0,1.28787498]
[1754910024659,0.94586908,121210.0,121200.0,1.47980976]
[1754910024865,0.94586908,121210.0,121200.0,1.53056976]
[1754910025361,0.17446908,121210.0,121200.0,1.53056976]
[1754910025560,0.94586908,121210.0,121200.0,1.53056976]
[1754910025962,0.94586908,121210.0,121200.0,1.33863498]
[1754910026859,0.83664908,121210.0,121200.0,1.33863498]
[1754910027056,0.83688908,121210.0,121200.0,1.33863498]
[1754910027555,0.83688908,121210.0,121200.0,1.53037278]
[1754910028467,0.43588908,121210.0,121200.0,1.53027278]
[1754910028763,0.40288908,121210.0,121200.0,1.33853498]
[1754910029056,0.1167658,121220.0,121200.0,1.58608848]
[1754910029257,0.77941812,121230.0,121220.0,0.0825057]
[1754910029458,1.58456056,121230.0,121220.0,0.3167257]
[1754910029663,0.00016774,121230.0,121220.0,1.23294668]
[1754910029873,0.77116774,121230.0,121220.0,1.31545152]
[1754910030162,0.81763774,121230.0,121220.0,1.31545152]
[1754910030361,0.92088109,121230.0,121220.0,1.31545152]
[1754910030561,0.92565774,121230.0,121220.0,1.31545152]
[1754910030965,0.92565774,121230.0,121220.0,1.16216893]
[1754910031258,0.92565774,121230.0,121220.0,1.50714507]
[1754910031562,0.93617774,121230.0,121220.0,1.50714507]
[1754910032074,1.00086126,121230.0,121220.0,1.31545152]
[1754910032964,1.04135461,121230.0,121220.0,1.31545152]
[1754910033755,0.88420126,121230.0,121220.0,1.31545152]
[1754910033960,0.83773126,121230.0,121220.0,0.97047538]
[1754910034162,0.83773126,121230.0,121220.0,1.31545152]
[1754910034859,0.88420126,121230.0,121220.0,1.31545152]
[1754910035164,0.94695126,121230.0,121220.0,1.31545152]
[1754910035366,0.99222126,121230.0,121220.0,1.31545152]
[1754910035861,0.4432827,121260.0,121240.0,0.0824925]
[1754910036054,0.06701632,121260.0,121250.0,0.2474527]
[1754910036260,0.14637,121260.0,121250.0,0.4345127]
[1754910036464,1.64637,121260.0,121250.0,1.09457151]
[1754910036663,2.50899,121260.0,121250.0,1.09457151]
[1754910036864,2.50907533,121260.0,121250.0,1.14173151]
[1754910037364,2.95235413,121260.0,121250.0,0.69280151]
[1754910037567,2.95235413,121260.0,121250.0,0.60894151]
[1754910037568,2.95245413,121260.0,121250.0,0.60894151]
[1754910037766,2.95545413,121260.0,121250.0,0.60894151]
[1754910038159,2.95537413,121260.0,121250.0,0.60894151]
[1754910038360,2.52955027,121260.0,121250.0,0.28805033]
[1754910038562,3.30035027,121260.0,121250.0,0.15556903]
[1754910038762,3.30035027,121260.0,121250.0,0.16775473]
[1754910039364,3.30035027,121260.0,121250.0,0.21491473]
[1754910039565,3.30235027,121260.0,121250.0,0.21491473]
[1754910040660,3.36825823,121260.0,121250.0,0.21491473]
[1754910041060,2.59745823,121260.0,121250.0,0.21491473]
[1754910041260,2.59745823,121260.0,121250.0,0.16775463]
[1754910041261,3.36825823,121260.0,121250.0,0.16775463]
[1754910042067,3.36825823,121260.0,121250.0,0.21491463]
[1754910042869,3.36825823,121260.0,121250.0,0.16775463]
[1754910043266,3.36825823,121260.0,121250.0,0.21491463]
[1754910043463,3.36825823,121260.0,121250.0,0.32470965]
[1754910044371,3.31723137,121260.0,121250.0,0.32470965]
[1754910046462,3.31723137,121260.0,121250.0,0.27754965]
[1754910046973,3.31723137,121260.0,121250.0,0.16775463]
[1754910047376,3.31723137,121260.0,121250.0,0.08526903]
[1754910047777,3.02328209,121260.0,121250.0,0.08526903]
[1754910047978,3.31723137,121260.0,121250.0,0.16775473]
[1754910048273,3.31723137,121260.0,121250.0,0.27754965]
[1754910048770,3.31711137,121260.0,121250.0,0.27754965]
[1754910049476,3.31711137,121260.0,121250.0,0.08526903]
[1754910050767,3.31711137,121260.0,121250.0,0.13384903]
[1754910054179,3.31711137,121260.0,121250.0,0.32612965]
[1754910054480,3.02312209,121260.0,121250.0,0.32612965]
[1754910054678,3.31707137,121260.0,121250.0,0.32612965]
[1754910055075,2.54643137,121260.0,121250.0,0.32612965]
[1754910055275,3.31703137,121260.0,121250.0,0.32612965]
[1754910055478,3.31703137,121260.0,121250.0,0.13384903]
[1754910056479,3.02308209,121260.0,121250.0,0.13384903]
[1754910056676,2.25248209,121260.0,121250.0,0.32612965]
[1754910056877,3.02304209,121260.0,121250.0,0.32612965]
[1754910057881,2.78493209,121260.0,121250.0,0.27754965]
[1754910058983,3.07888137,121260.0,121250.0,0.08526903]
[1754910059179,2.78493209,121260.0,121250.0,0.65436079]
[1754910059376,1.65357219,121260.0,121250.0,0.74722573]
[1754910059684,2.42413219,121260.0,121250.0,0.74722573]
[1754910059873,1.65357219,121260.0,121250.0,0.74722573]
[1754910060383,2.34165329,121260.0,121250.0,0.91536895]
[1754910061081,2.42413209,121260.0,121250.0,0.91536895]
[1754910061281,2.42213209,121260.0,121250.0,0.91536895]
[1754910061482,2.42013209,121260.0,121250.0,0.91536895]
[1754910061671,2.42113209,121260.0,121250.0,0.91536895]
[1754910062080,0.06809329,121260.0,121250.0,1.15804369]
[1754910062285,0.06809329,121260.0,121250.0,1.32298769]
[1754910062481,0.06809329,121260.0,121250.0,2.09350769]
[1754910062482,0.06709329,121260.0,121250.0,2.09350769]
[1754910063179,0.06609329,121260.0,121250.0,2.09350769]
[1754910063384,0.06609329,121260.0,121250.0,1.90083295]
[1754910063579,0.06609329,121260.0,121250.0,1.90183295]
[1754910063782,0.14857229,121260.0,121250.0,0.55556895]
[1754910063979,0.14857229,121260.0,121250.0,0.17913397]
[1754910064181,0.14857229,121260.0,121250.0,0.47536805]
[1754910064182,0.91905229,121260.0,121250.0,0.47536805]
[1754910065487,0.91905229,121260.0,121250.0,0.55785385]
[1754910065689,0.14857229,121260.0,121250.0,0.55785385]
[1754910065981,0.91901229,121260.0,121250.0,0.85180313]
[1754910066887,0.91901229,121260.0,121250.0,0.55785385]
[1754910067092,0.91901229,121260.0,121250.0,0.85180313]
[1754910067589,0.91901219,121260.0,121250.0,0.85180313]
[1754910068289,0.92014673,121260.0,121250.0,0.55556905]